lending/lending_fUSD_20240507
["ID","MTS","AMOUNT","RATE_DAILY","PERIOD"]
[326571538,1715113853838,-500.0,0.0002,2]
[326571539,1715113853847,-500.0,0.0002,2]
[326571540,1715113853857,-500.0,0.0002,2]
[326571541,1715113853866,-500.0,0.0002,2]
[326571542,1715113853876,-329.63476029,0.0002,2]
[326571543,1715113853885,-156.96904234,0.0002,2]
[326571544,1715113853894,-500.0,0.0002,2]
[326571545,1715113853903,-500.0,0.0002,2]
[326571546,1715113853913,-500.0,0.0002,2]
[326571547,1715113853922,-500.0,0.0002,2]
[326571548,1715113853932,-500.0,0.0002,2]
[326571549,1715113853942,-500.0,0.0002,2]
[326571550,1715113853951,-500.0,0.0002,2]
[326571551,1715113853961,-2000.0,0.0002,2]
[326571552,1715113853970,-200.0,0.0002,2]
[326571553,1715113853979,-500.0,0.0002,2]
[326571554,1715113853990,-500.0,0.0002,2]
[326571555,1715113853999,-555.62,0.0002,2]
[326571556,1715113854008,-500.0,0.0002,2]
[326571557,1715113854017,-500.0,0.0002,2]
[326571558,1715113854027,-500.0,0.0002,2]
[326571559,1715113854039,-500.0,0.0002,2]
[326571560,1715113854049,-500.0,0.0002,2]
[326571561,1715113854058,-500.0,0.0002,2]
[326571562,1715113854067,-500.0,0.0002,2]
[326571563,1715113854078,-500.0,0.0002,2]
[326571564,1715113854088,-500.0,0.0002,2]
[326571565,1715113854097,-500.0,0.0002,2]
[326571566,1715113854107,-500.0,0.0002,2]
[326571567,1715113854119,-500.0,0.0002,2]
[326571568,1715113854128,-500.0,0.0002,2]
[326571569,1715113854138,-500.0,0.0002,2]
[326571570,1715113854147,-500.0,0.0002,2]
[326571571,1715113854156,-500.0,0.0002,2]
[326571572,1715113854165,-500.0,0.0002,2]
[326571573,1715113854174,-20000.0,0.0002,2]
[326571574,1715113854183,-1076.55,0.0002,2]
[326571575,1715113854193,-500.0,0.0002,2]
[326571576,1715113854202,-151.0,0.0002,2]
[326571577,1715113854212,-500.0,0.0002,2]
[326571578,1715113854221,-500.0,0.0002,2]
[326571579,1715113854231,-500.0,0.0002,2]
[326571580,1715113854240,-500.0,0.0002,2]
[326571581,1715113854251,-500.0,0.0002,2]
[326571582,1715113854260,-249.3363251,0.0002,2]
[326571583,1715113854270,-626.44942716,0.0002,2]
[326571584,1715113854279,-500.0,0.0002,2]
[326571585,1715113854288,-500.0,0.0002,2]
[326571586,1715113854298,-500.0,0.0002,2]
[326571587,1715113854307,-500.0,0.0002,2]
[326571588,1715113854317,-540.29,0.0002,2]
[326571589,1715113854326,-500.0,0.0002,2]
[326571590,1715113854335,-500.0,0.0002,2]
[326571591,1715113854345,-500.0,0.0002,2]
[326571592,1715113854355,-500.0,0.0002,2]
[326571593,1715113854364,-500.0,0.0002,2]
[326571594,1715113854373,-546.19754982,0.0002,2]
[326571595,1715113854383,-500.0,0.0002,2]
[326571596,1715113854392,-500.0,0.0002,2]
[326571597,1715113854401,-500.0,0.0002,2]
[326571598,1715113854411,-500.0,0.0002,2]
[326571599,1715113854420,-500.0,0.0002,2]
[326571600,1715113854430,-500.0,0.0002,2]
[326571601,1715113854439,-500.0,0.0002,2]
[326571602,1715113854449,-500.0,0.0002,2]
[326571603,1715113854458,-500.0,0.0002,2]
[326571604,1715113854468,-508.63,0.0002,2]
[326571605,1715113854477,-500.0,0.0002,2]
[326571606,1715113854487,-500.0,0.0002,2]
[326571607,1715113854496,-500.0,0.0002,2]
[326571608,1715113854507,-500.0,0.0002,2]
[326571609,1715113854518,-629.13,0.0002,2]
[326571610,1715113854527,-500.0,0.0002,2]
[326571611,1715113854539,-500.0,0.0002,2]
[326571612,1715113854548,-500.0,0.0002,2]
[326571613,1715113854557,-597.37,0.0002,2]
[326571614,1715113854567,-268.51,0.0002,2]
[326571615,1715113854576,-500.0,0.0002,2]
[326571616,1715113854586,-500.0,0.0002,2]
[326571617,1715113854596,-504.72,0.0002,2]
[326571618,1715113854605,-500.0,0.0002,2]
[326571619,1715113854615,-500.0,0.0002,2]
[326571620,1715113854625,-500.0,0.0002,2]
[326571621,1715113854634,-500.0,0.0002,2]
[326571622,1715113854644,-500.0,0.0002,2]
[326571623,1715113854653,-500.0,0.0002,2]
[326571624,1715113854663,-500.0,0.0002,2]
[326571625,1715113854672,-500.0,0.0002,2]
[326571626,1715113854681,-518.3,0.0002,2]
[326571627,1715113854691,-587.47,0.0002,2]
[326571628,1715113854700,-500.0,0.0002,2]
[326571629,1715113854709,-500.0,0.0002,2]
[326571630,1715113854718,-696.01,0.0002,2]
[326571631,1715113854727,-500.0,0.0002,2]
[326571632,1715113854737,-500.0,0.0002,2]
[326571633,1715113854746,-500.0,0.0002,2]
[326571634,1715113854757,-500.0,0.0002,2]
[326571635,1715113854766,-500.0,0.0002,2]
[326571636,1715113854775,-500.0,0.0002,2]
[326571637,1715113854784,-500.0,0.0002,2]
[326571638,1715113854793,-558.24513907,0.0002,2]
[326571639,1715113854802,-500.0,0.0002,2]
[326571640,1715113854812,-500.0,0.0002,2]
[326571641,1715113854821,-500.0,0.0002,2]
[326571642,1715113854831,-500.0,0.0002,2]
[326571643,1715113854841,-500.0,0.0002,2]
[326571644,1715113854850,-500.0,0.0002,2]
[326571645,1715113854859,-526.99,0.0002,2]
[326571646,1715113854869,-200.0,0.0002,2]
[326571647,1715113854878,-684.15,0.0002,2]
[326571648,1715113854888,-500.0,0.0002,2]
[326571649,1715113854897,-500.37,0.0002,2]
[326571650,1715113854907,-500.0,0.0002,2]
[326571651,1715113854917,-175.93183996,0.0002,2]
[326571652,1715113854927,-500.0,0.0002,2]
[326571653,1715113854937,-500.0,0.0002,2]
[326571654,1715113854946,-500.0,0.0002,2]
[326571655,1715113854956,-500.0,0.0002,2]
[326571656,1715113854965,-582.5,0.0002,2]
[326571657,1715113854975,-599.49,0.0002,2]
[326571658,1715113854984,-500.0,0.0002,2]
[326571659,1715113854993,-500.0,0.0002,2]
[326571660,1715113855004,-500.0,0.0002,2]
[326571661,1715113855013,-500.0,0.0002,2]
[326571662,1715113855023,-500.0,0.0002,2]
[326571663,1715113855035,-500.0,0.0002,2]
[326571664,1715113855047,-500.0,0.0002,2]
[326571665,1715113855057,-500.0,0.0002,2]
[326571666,1715113855066,-500.0,0.0002,2]
[326571667,1715113855078,-500.0,0.0002,2]
[326571668,1715113855088,-715.61,0.0002,2]
[326571669,1715113855097,-500.0,0.0002,2]
[326571670,1715113855107,-500.0,0.0002,2]
[326571671,1715113855118,-500.0,0.0002,2]
[326571672,1715113855128,-500.0,0.0002,2]
[326571673,1715113855138,-500.0,0.0002,2]
[326571674,1715113855147,-500.0,0.0002,2]
[326571675,1715113855157,-500.0,0.0002,2]
[326571676,1715113855167,-1741.3,0.0002,2]
[326571677,1715113855176,-535.22,0.0002,2]
[326571678,1715113855185,-500.0,0.0002,2]
[326571679,1715113855195,-940.62,0.0002,2]
[326571680,1715113855204,-1710.24,0.0002,2]
[326571681,1715113855214,-693.02,0.0002,2]
[326571682,1715113855223,-500.0,0.0002,2]
[326571683,1715113855232,-539.68,0.0002,2]
[326571684,1715113855241,-2788.2,0.0002,2]
[326571685,1715113855251,-500.0,0.0002,2]
[326571686,1715113855261,-1292.34,0.0002,2]
[326571687,1715113855271,-645.46,0.0002,2]
[326571688,1715113855280,-710.27,0.0002,2]
[326571689,1715113855291,-500.0,0.0002,2]
[326571690,1715113855301,-500.0,0.0002,2]
[326571691,1715113855311,-749.26,0.0002,2]
[326571692,1715113855322,-500.0,0.0002,2]
[326571693,1715113855331,-2223.0,0.0002,2]
[326571694,1715113855340,-500.0,0.0002,2]
[326571695,1715113855349,-642.8220779,0.0002,2]
[326571696,1715113855359,-500.0,0.0002,2]
[326571697,1715113855368,-500.0,0.0002,2]
[326571698,1715113855377,-500.0,0.0002,2]
[326571699,1715113855386,-151.0,0.0002,2]
[326571700,1715113855395,-500.0,0.0002,2]
[326571701,1715113855404,-2661.17535,0.0002,2]
[326571702,1715113855413,-500.0,0.0002,2]
[326571703,1715113855422,-711.78,0.0002,2]
[326571704,1715113855431,-547.13,0.0002,2]
[326571705,1715113855440,-500.0,0.0002,2]
[326571706,1715113855449,-680.12,0.0002,2]
[326571707,1715113855458,-1577.76,0.0002,2]
[326571708,1715113855467,-561.78,0.0002,2]
[326571709,1715113855476,-581.76,0.0002,2]
[326571710,1715113855485,-448.92672394,0.0002,2]
[326571711,1715113855495,-609.78,0.0002,2]
[326571712,1715113855506,-500.0,0.0002,2]
[326571713,1715113855515,-500.0,0.0002,2]
[326571714,1715113855526,-500.0,0.0002,2]
[326571715,1715113855537,-500.0,0.0002,2]
[326571716,1715113855546,-500.0,0.0002,2]
[326571717,1715113855556,-687.99,0.0002,2]
[326571718,1715113855566,-516.49,0.0002,2]
[326571719,1715113855576,-4127.75,0.0002,2]
[326571720,1715113855586,-799.61,0.0002,2]
[326571721,1715113855596,-1401.63,0.0002,2]
[326571722,1715113855605,-500.0,0.0002,2]
[326571723,1715113855615,-776.79,0.0002,2]
[326571724,1715113855625,-1437.13,0.0002,2]
[326571725,1715113855635,-312.90067171,0.0002,2]
[326571726,1715113855645,-701.01,0.0002,2]
[326571727,1715113855655,-500.0,0.0002,2]
[326571728,1715113855664,-500.0,0.0002,2]
[326571729,1715113855673,-5537.35,0.0002,2]
[326571730,1715113855683,-853.18,0.0002,2]
[326571731,1715113855693,-500.0,0.0002,2]
[326571732,1715113855702,-818.27,0.0002,2]
[326571733,1715113855711,-500.0,0.0002,2]
[326571734,1715113855720,-558.94,0.0002,2]
[326571735,1715113855729,-1491.2,0.0002,2]
[326571736,1715113855738,-500.0,0.0002,2]
[326571737,1715113855748,-500.0,0.0002,2]
[326571738,1715113855757,-727.39,0.0002,2]
[326571739,1715113855767,-669.61,0.0002,2]
[326571740,1715113855776,-591.9,0.0002,2]
[326571741,1715113855785,-500.0,0.0002,2]
[326571742,1715113855794,-560.68,0.0002,2]
[326571743,1715113855804,-500.0,0.0002,2]
[326571744,1715113855813,-500.0,0.0002,2]
[326571745,1715113855822,-1228.41,0.0002,2]
[326571746,1715113855831,-500.0,0.0002,2]
[326571747,1715113855841,-500.0,0.0002,2]
[326571748,1715113855850,-624.03,0.0002,2]
[326571749,1715113855859,-1070.76,0.0002,2]
[326571750,1715113855869,-500.0,0.0002,2]
[326571751,1715113855878,-500.0,0.0002,2]
[326571752,1715113855888,-3412.33,0.0002,2]
[326571753,1715113855897,-500.0,0.0002,2]
[326571754,1715113855908,-500.0,0.0002,2]
[326571755,1715113855917,-500.0,0.0002,2]
[326571756,1715113855926,-910.86,0.0002,2]
[326571757,1715113855935,-500.0,0.0002,2]
[326571758,1715113855945,-500.0,0.0002,2]
[326571759,1715113855954,-500.0,0.0002,2]
[326571760,1715113855963,-500.0,0.0002,2]
[326571761,1715113855972,-500.0,0.0002,2]
[326571762,1715113855981,-500.0,0.0002,2]
[326571763,1715113855991,-500.0,0.0002,2]
[326571764,1715113856000,-576.45,0.0002,2]
[326571765,1715113856009,-722.56,0.0002,2]
[326571766,1715113856019,-1842.24,0.0002,2]
[326571767,1715113856029,-500.0,0.0002,2]
[326571768,1715113856041,-500.0,0.0002,2]
[326571769,1715113856050,-1096.22,0.0002,2]
[326571770,1715113856060,-1409.68,0.0002,2]
[326571771,1715113856071,-611.88,0.0002,2]
[326571772,1715113856080,-500.0,0.0002,2]
[326571773,1715113856088,-500.0,0.0002,2]
[326571774,1715113856098,-838.71,0.0002,2]
[326571775,1715113856107,-1105.09,0.0002,2]
[326571776,1715113856118,-500.0,0.0002,2]
[326571777,1715113856128,-500.0,0.0002,2]
[326571778,1715113856138,-500.0,0.0002,2]
[326571779,1715113856147,-1971.37,0.0002,2]
[326571780,1715113856157,-592.84,0.0002,2]
[326571781,1715113856166,-686.2,0.0002,2]
[326571782,1715113856176,-500.0,0.0002,2]
[326571783,1715113856185,-2089.89,0.0002,2]
[326571784,1715113856194,-576.81,0.0002,2]
[326571785,1715113856203,-10776.78,0.0002,2]
[326571786,1715113856213,-500.0,0.0002,2]
[326571787,1715113856222,-2275.2,0.0002,2]
[326571788,1715113856231,-600.53,0.0002,2]
[326571789,1715113856240,-500.0,0.0002,2]
[326571790,1715113856251,-1261.59,0.0002,2]
[326571791,1715113856260,-5265.21,0.0002,2]
[326571792,1715113856269,-500.0,0.0002,2]
[326571793,1715113856278,-1054.04,0.0002,2]
[326571794,1715113856287,-500.0,0.0002,2]
[326571795,1715113856296,-874.16,0.0002,2]
[326571796,1715113856305,-855.49,0.0002,2]
[326571797,1715113856314,-500.0,0.0002,2]
[326571798,1715113856323,-856.23,0.0002,2]
[326571799,1715113856332,-500.0,0.0002,2]
[326571800,1715113856342,-821.53,0.0002,2]
[326571801,1715113856351,-1392.01,0.0002,2]
[326571802,1715113856361,-500.0,0.0002,2]
[326571803,1715113856370,-505.28,0.0002,2]
[326571804,1715113856379,-1149.21,0.0002,2]
[326571805,1715113856389,-794.53,0.0002,2]
[326571806,1715113856398,-1439.95,0.0002,2]
[326571807,1715113856408,-500.0,0.0002,2]
[326571808,1715113856417,-500.0,0.0002,2]
[326571809,1715113856426,-500.0,0.0002,2]
[326571810,1715113856436,-500.0,0.0002,2]
[326571811,1715113856446,-500.0,0.0002,2]
[326571812,1715113856455,-1692.56,0.0002,2]
[326571813,1715113856464,-208.68320303,0.0002,2]
[326571814,1715113856474,-500.0,0.0002,2]
[326571815,1715113856483,-1022.22,0.0002,2]
[326571816,1715113856492,-1646.75,0.0002,2]
[326571817,1715113856503,-724.92,0.0002,2]
[326571818,1715113856512,-500.0,0.0002,2]
[326571819,1715113856522,-500.0,0.0002,2]
[326571820,1715113856532,-500.0,0.0002,2]
[326571821,1715113856543,-1269.99,0.0002,2]
[326571822,1715113856552,-500.0,0.0002,2]
[326571823,1715113856562,-500.0,0.0002,2]
[326571824,1715113856571,-2072.77,0.0002,2]
[326571825,1715113856580,-607.52,0.0002,2]
[326571826,1715113856590,-622.84947669,0.0002,2]
[326571827,1715113856599,-500.0,0.0002,2]
[326571828,1715113856609,-500.0,0.0002,2]
[326571829,1715113856619,-649.43,0.0002,2]
[326571830,1715113856628,-151.0,0.0002,2]
[326571831,1715113856638,-752.78,0.0002,2]
[326571832,1715113856648,-151.0,0.0002,2]
[326571833,1715113856657,-902.24,0.0002,2]
[326571834,1715113856667,-250.083424,0.0002,2]
[326571835,1715113856676,-1048.33,0.0002,2]
[326571836,1715113856686,-500.0,0.0002,2]
[326571837,1715113856695,-885.17,0.0002,2]
[326571838,1715113856704,-873.43,0.0002,2]
[326571839,1715113856714,-949.99,0.0002,2]
[326571840,1715113856724,-6949.33,0.0002,2]
[326571841,1715113856734,-500.0,0.0002,2]
[326571842,1715113856744,-1045.07,0.0002,2]
[326571843,1715113856755,-1406.44,0.0002,2]
[326571844,1715113856765,-500.0,0.0002,2]
[326571845,1715113856775,-257.47,0.0002,2]
[326571846,1715113856784,-1377.48,0.0002,2]
[326571847,1715113856794,-500.0,0.0002,2]
[326571848,1715113856803,-706.85,0.0002,2]
[326571849,1715113856813,-500.0,0.0002,2]
[326571850,1715113856823,-526.39431953,0.0002,2]
[326571851,1715113856832,-988.15,0.0002,2]
[326571852,1715113856842,-602.53,0.0002,2]
[326571853,1715113856852,-500.0,0.0002,2]
[326571854,1715113856863,-702.58,0.0002,2]
[326571855,1715113856872,-500.0,0.0002,2]
[326571856,1715113856882,-623.56486181,0.0002,2]
[326571857,1715113856892,-1129.59,0.0002,2]
[326571858,1715113856901,-2577.91,0.0002,2]
[326571859,1715113856911,-801.08,0.0002,2]
[326571860,1715113856920,-500.0,0.0002,2]
[326571861,1715113856930,-2252.22,0.0002,2]
[326571862,1715113856939,-500.0,0.0002,2]
[326571863,1715113856950,-500.0,0.0002,2]
[326571864,1715113856959,-691.69,0.0002,2]
[326571865,1715113856970,-500.0,0.0002,2]
[326571866,1715113856980,-643.49,0.0002,2]
[326571867,1715113856989,-1003.94,0.0002,2]
[326571868,1715113856999,-500.0,0.0002,2]
[326571869,1715113857011,-500.0,0.0002,2]
[326571870,1715113857020,-2295.13,0.0002,2]
[326571871,1715113857030,-500.0,0.0002,2]
[326571872,1715113857042,-500.0,0.0002,2]
[326571873,1715113857052,-500.0,0.0002,2]
[326571874,1715113857061,-1288.82,0.0002,2]
[326571875,1715113857071,-1322.38,0.0002,2]
[326571876,1715113857082,-500.0,0.0002,2]
[326571877,1715113857092,-557.07,0.0002,2]
[326571878,1715113857102,-500.0,0.0002,2]
[326571879,1715113857111,-500.0,0.0002,2]
[326571880,1715113857122,-151.0,0.0002,2]
[326571881,1715113857132,-151.0,0.0002,2]
[326571882,1715113857143,-364.95164689,0.0002,2]
[326571883,1715113857153,-651.03,0.0002,2]
[326571884,1715113857162,-500.0,0.0002,2]
[326571885,1715113857171,-544.09764871,0.00020014,2]
[326571886,1715113857181,-14837.7177218,0.00020016,2]
[326571887,1715113857190,-3751.5258834,0.00020016,2]
[326571888,1715113857200,-5737.74953061,0.0002012,2]
[326571889,1715113857210,-2748.1910792,0.00020145,2]
[326571890,1715113857219,-302.79001874,0.00020167,2]
[326571891,1715113857230,-10000.0,0.00020173,2]
[326571892,1715113857240,-356.34350886,0.00020179,2]
[326571893,1715113857249,-2000.0,0.000202,2]
[326571894,1715113857261,-200.0,0.000202,2]
[326571895,1715113857270,-2000.0,0.000202,2]
[326571896,1715113857280,-200.0,0.000202,2]
[326571897,1715113857289,-232.489024,0.00020203,2]
[326571898,1715113857299,-611.0,0.00020203,2]
[326571899,1715113857308,-1787.0,0.00020203,2]
[326571900,1715113857317,-438.0,0.00020203,2]
[326571901,1715113857326,-209.0,0.00020203,2]
[326571902,1715113857335,-808.0,0.00020203,2]
[326571903,1715113857344,-421.0,0.00020203,2]
[326571904,1715113857354,-1477.0,0.00020203,2]
[326571905,1715113857362,-2450.0,0.00020203,2]
[326571906,1715113857371,-150.0,0.00020203,2]
[326571907,1715113857380,-150.0,0.00020203,2]
[326571908,1715113857389,-1644.0,0.00020203,2]
[326571909,1715113857399,-1139.0,0.00020203,2]
[326571910,1715113857408,-215.0,0.00020203,2]
[326571911,1715113857417,-444.0,0.00020203,2]
[326571912,1715113857427,-3152.0,0.00020203,2]
[326571913,1715113857436,-288.0,0.00020203,2]
[326571914,1715113857445,-288.0,0.00020203,2]
[326571915,1715113857455,-1058.0,0.00020203,2]
[326571916,1715113857464,-5744.0,0.00020203,2]
[326571917,1715113857474,-971.0,0.00020203,2]
[326571918,1715113857483,-462.0,0.00020203,2]
[326571919,1715113857493,-1396.0,0.00020203,2]
[326571920,1715113857502,-5906.0,0.00020203,2]
[326571921,1715113857513,-1519.509,0.00020203,2]
[326571922,1715113857523,-2294.0,0.00020203,2]
[326571923,1715113857534,-179.8,0.00020222,3]
[326571924,1715113857544,-549.0,0.00020272,2]
[326571925,1715113857554,-443.73094514,0.00020273,2]
[326571926,1715113857564,-190.68189553,0.00020273,2]
[326571927,1715113857574,-500.0,0.00020273,2]
[326571928,1715113857583,-500.0,0.00020273,2]
[326571929,1715113857593,-500.0,0.00020273,2]
[326571930,1715113857602,-500.0,0.00020273,2]
[326571931,1715113857612,-500.0,0.00020273,2]
[326571932,1715113857621,-500.0,0.00020273,2]
[326571933,1715113857631,-500.0,0.00020273,2]
[326571934,1715113857641,-500.0,0.00020273,2]
[326571935,1715113857651,-500.0,0.00020273,2]
[326571936,1715113857660,-500.0,0.00020273,2]
[326571937,1715113857670,-500.0,0.00020273,2]
[326571938,1715113857679,-500.0,0.00020273,2]
[326571939,1715113857689,-500.0,0.00020273,2]
[326571940,1715113857698,-500.0,0.00020273,2]
[326571941,1715113857708,-500.0,0.00020273,2]
[326571942,1715113857717,-500.0,0.00020273,2]
[326571943,1715113857727,-500.0,0.00020273,2]
[326571944,1715113857737,-500.0,0.00020273,2]
[326571945,1715113857746,-500.0,0.00020273,2]
[326571946,1715113857756,-555.62,0.00020273,2]
[326571947,1715113857765,-500.0,0.00020273,2]
[326571948,1715113857775,-500.0,0.00020273,2]
[326571949,1715113857784,-500.0,0.00020273,2]
[326571950,1715113857794,-500.0,0.00020273,2]
[326571951,1715113857803,-500.0,0.00020273,2]
[326571952,1715113857813,-500.0,0.00020273,2]
[326571953,1715113857822,-500.0,0.00020273,2]
[326571954,1715113857831,-500.0,0.00020273,2]
[326571955,1715113857841,-500.0,0.00020273,2]
[326571956,1715113857850,-500.0,0.00020273,2]
[326571957,1715113857861,-500.0,0.00020273,2]
[326571958,1715113857870,-500.0,0.00020273,2]
[326571959,1715113857880,-500.0,0.00020273,2]
[326571960,1715113857889,-500.0,0.00020273,2]
[326571961,1715113857899,-500.0,0.00020273,2]
[326571962,1715113857909,-500.0,0.00020273,2]
[326571963,1715113857919,-500.0,0.00020273,2]
[326571964,1715113857928,-1076.55,0.00020273,2]
[326571965,1715113857940,-577.70115276,0.00020273,2]
[326571966,1715113857949,-500.0,0.00020273,2]
[326571967,1715113857961,-500.0,0.00020273,2]
[326571968,1715113857971,-500.0,0.00020273,2]
[326571969,1715113857981,-500.0,0.00020273,2]
[326571970,1715113857992,-190.6980931,0.00020273,2]
[326571971,1715113858002,-500.0,0.00020273,2]
[326571972,1715113858012,-500.0,0.00020273,2]
[326571973,1715113858022,-500.0,0.00020273,2]
[326571974,1715113858032,-500.0,0.00020273,2]
[326571975,1715113858047,-540.29,0.00020273,2]
[326571976,1715113858059,-500.0,0.00020273,2]
[326571977,1715113858070,-500.0,0.00020273,2]
[326571978,1715113858080,-500.0,0.00020273,2]
[326571979,1715113858090,-500.0,0.00020273,2]
[326571980,1715113858101,-500.0,0.00020273,2]
[326571981,1715113858110,-500.0,0.00020273,2]
[326571982,1715113858123,-500.0,0.00020273,2]
[326571983,1715113858136,-500.0,0.00020273,2]
[326571984,1715113858145,-500.0,0.00020273,2]
[326571985,1715113858155,-500.0,0.00020273,2]
[326571986,1715113858165,-500.0,0.00020273,2]
[326571987,1715113858175,-500.0,0.00020273,2]
[326571988,1715113858187,-500.0,0.00020273,2]
[326571989,1715113858197,-508.63,0.00020273,2]
[326571990,1715113858206,-500.0,0.00020273,2]
[326571991,1715113858217,-500.0,0.00020273,2]
[326571992,1715113858227,-500.0,0.00020273,2]
[326571993,1715113858237,-500.0,0.00020273,2]
[326571994,1715113858247,-500.0,0.00020273,2]
[326571995,1715113858256,-629.13,0.00020273,2]
[326571996,1715113858265,-500.0,0.00020273,2]
[326571997,1715113858275,-500.0,0.00020273,2]
[326571998,1715113858284,-500.0,0.00020273,2]
[326571999,1715113858294,-597.37,0.00020273,2]
[326572000,1715113858303,-268.51,0.00020273,2]
[326572001,1715113858313,-500.0,0.00020273,2]
[326572002,1715113858322,-500.0,0.00020273,2]
[326572003,1715113858332,-504.72,0.00020273,2]
[326572004,1715113858341,-500.0,0.00020273,2]
[326572005,1715113858351,-500.0,0.00020273,2]
[326572006,1715113858361,-500.0,0.00020273,2]
[326572007,1715113858371,-500.0,0.00020273,2]
[326572008,1715113858380,-500.0,0.00020273,2]
[326572009,1715113858390,-500.0,0.00020273,2]
[326572010,1715113858399,-500.0,0.00020273,2]
[326572011,1715113858409,-500.0,0.00020273,2]
[326572012,1715113858418,-518.3,0.00020273,2]
[326572013,1715113858428,-587.47,0.00020273,2]
[326572014,1715113858438,-500.0,0.00020273,2]
[326572015,1715113858702,-500.0,0.00020273,2]
[326572016,1715113858712,-696.01,0.00020273,2]
[326572017,1715113858722,-500.0,0.00020273,2]
[326572018,1715113858733,-500.0,0.00020273,2]
[326572019,1715113858743,-500.0,0.00020273,2]
[326572020,1715113858752,-500.0,0.00020273,2]
[326572021,1715113858762,-500.0,0.00020273,2]
[326572022,1715113858772,-500.0,0.00020273,2]
[326572023,1715113858781,-500.0,0.00020273,2]
[326572024,1715113858790,-500.0,0.00020273,2]
[326572025,1715113858799,-500.0,0.00020273,2]
[326572026,1715113858809,-500.0,0.00020273,2]
[326572027,1715113858819,-500.0,0.00020273,2]
[326572028,1715113858828,-500.0,0.00020273,2]
[326572029,1715113858839,-500.0,0.00020273,2]
[326572030,1715113858849,-526.99,0.00020273,2]
[326572031,1715113858859,-684.15,0.00020273,2]
[326572032,1715113858868,-500.0,0.00020273,2]
[326572033,1715113858878,-500.0,0.00020273,2]
[326572034,1715113858887,-500.37,0.00020273,2]
[326572035,1715113858897,-500.0,0.00020273,2]
[326572036,1715113858906,-500.0,0.00020273,2]
[326572037,1715113858916,-500.0,0.00020273,2]